fUST/lending_fUST_20251215
["ID","MTS","AMOUNT","RATE_DAILY","PERIOD"]
[398484599,1765729983001,166.84,0.000126,2]
[398484600,1765729983281,166.84,0.000129,2]
[398484601,1765729983588,166.84,0.000131,2]
[398484602,1765729983934,166.84,0.000134,2]
[398484603,1765729984248,166.84,0.000137,2]
[398484604,1765729984616,166.84,0.00014,2]
[398484605,1765729984817,601.82,9.482e-05,2]
[398484606,1765729985239,1203.64,0.00010344,2]
[398484607,1765729985790,1805.47,0.00011207,2]
[398484608,1765729986170,496.47424895,0.00012069,2]
[398484609,1765729986193,1910.81575105,0.00012069,2]
[398484610,1765729986571,3009.11,0.00012931,2]
[398484611,1765729987487,3610.93,0.00013793,2]
[398484612,1765729987921,1469.15424895,0.00014655,2]
[398484613,1765729987946,2743.60575105,0.00014655,2]
[398484614,1765729988328,4814.58,0.00015517,2]
[398484615,1765730004370,202.84547002,0.00012453,2]
[398484617,1765730043010,300.0,0.00015932,2]
[398484618,1765730050918,5575.0,0.000159,2]
[398484619,1765730060990,1524.97875479,0.00015919,2]
[398484620,1765730062111,346.1,9.992e-05,2]
[398484621,1765730062516,692.21,0.00010901,2]
[398484622,1765730062968,1038.31,0.00011809,2]
[398484623,1765730063854,320.56577519,0.00012718,2]
[398484624,1765730063879,1063.85422481,0.00012718,2]
[398484625,1765730064088,1730.52,0.00013626,2]
[398484626,1765730064298,2076.62,0.00014535,2]
[398484627,1765730065038,2422.73,0.00015443,2]
[398484628,1765730096126,160.0,5.2e-07,2]
[398484629,1765730097202,160.0,5.2e-07,2]
[398484630,1765730098344,160.0,5.2e-07,2]
[398484631,1765730099468,160.0,5.2e-07,2]
[398484632,1765730100566,160.0,5.2e-07,2]
[398484633,1765730101872,160.0,5.2e-07,2]
[398484634,1765730102685,160.0,5.2e-07,2]
[398484635,1765730104173,500.0,0.00013699,2]
[398484636,1765730104209,1000.0,0.00014247,2]
[398484637,1765730104239,86.28577519,5.2e-07,2]
[398484638,1765730104263,73.71422481,5.2e-07,2]
[398484639,1765730104320,1142.18096316,0.00014795,2]
[398484640,1765730105295,160.0,5.2e-07,2]
[398484641,1765730106258,500.0,0.00013273,2]
[398484642,1765730106326,1000.0,0.00013821,2]
[398484643,1765730106364,1500.0,0.00014368,2]
[398484644,1765730106401,160.0,5.2e-07,2]
[398484645,1765730106427,1175.3118198,0.00014916,2]
[398484646,1765730124593,597.0,0.00015932,2]
[398484647,1765730127694,1642.66095,0.00015321,2]
[398484649,1765730139651,238.04,0.00010544,2]
[398484650,1765730140062,476.08,0.00011503,2]
[398484651,1765730140455,714.11,0.00012461,2]
[398484652,1765730140933,620.91204223,0.0001342,2]
[398484653,1765730140958,331.23795777,0.0001342,2]
[398484654,1765730141281,1190.19,0.00014378,2]
[398484655,1765730141878,1428.23,0.00015337,2]
[398484656,1765730161285,10000.01,0.00015287,2]
[398484657,1765730161307,10000.01,0.00015287,2]
[398484658,1765730161329,10000.01,0.00015287,2]
[398484659,1765730161350,10000.01,0.00015287,2]
[398484660,1765730161371,3961.7159128,0.00015287,2]
[398484661,1765730170850,2659.0,0.000159,2]
[398484663,1765730204669,176.57,0.0001,2]
[398484664,1765730222263,150.55,0.00012,2]
[398484665,1765730223130,150.55,0.000121,2]
[398484666,1765730223720,150.55,0.000122,2]
[398484667,1765730223870,150.55,0.000122,2]
[398484668,1765730224145,150.55,0.000123,2]
[398484669,1765730224594,500.0,0.00013273,2]
[398484670,1765730225079,150.55,0.000124,2]
[398484671,1765730225406,150.55,0.000125,2]
[398484672,1765730225717,150.55,0.000125,2]
[398484673,1765730226112,150.55,0.000126,2]
[398484674,1765730226395,150.55,0.000127,2]
[398484675,1765730226724,150.55,0.000128,2]
[398484676,1765730227035,150.55,0.000129,2]
[398484677,1765730227328,150.55,0.000129,2]
[398484678,1765730227648,150.55,0.00013,2]
[398484679,1765730227964,150.55,0.000131,2]
[398484680,1765730228258,150.55,0.000132,2]
[398484681,1765730228546,150.55,0.000132,2]
[398484682,1765730228835,143.3740872,0.000133,2]
[398484683,1765730228859,7.1759128,0.000133,2]
[398484684,1765730229189,150.55,0.000134,2]
[398484685,1765730229479,150.55,0.000135,2]
[398484686,1765730229512,400.42,0.00010469,2]
[398484687,1765730229756,150.55,0.000135,2]
[398484688,1765730229916,800.84,0.00011421,2]
[398484689,1765730230103,150.55,0.000136,2]
[398484690,1765730230310,1201.27,0.00012373,2]
[398484691,1765730230393,150.55,0.000137,2]
[398484692,1765730230681,150.55,0.000138,2]
[398484693,1765730230731,1601.69,0.00013325,2]
[398484694,1765730231321,150.55,0.000139,2]
[398484695,1765730231353,2002.11,0.00014276,2]
[398484696,1765730231398,150.55,0.000139,2]
[398484697,1765730231565,2402.53,0.00015228,2]
[398484698,1765730279952,194.75,9.99e-05,2]
[398484699,1765730280244,184.8240872,9.99e-05,2]
[398484700,1765730280268,9.9159128,9.99e-05,2]
[398484701,1765730292189,2746.0,0.000159,2]
[398484702,1765730314154,293.4,0.0001047,2]
[398484703,1765730314580,586.8,0.00011421,2]
[398484704,1765730315031,880.2,0.00012373,2]
[398484705,1765730315451,1173.6,0.00013325,2]
[398484706,1765730315887,1467.0,0.00014277,2]
[398484707,1765730316839,1760.4,0.00015228,2]
[398484708,1765730366405,1082.6940872,0.00015876,2]
[398484709,1765730366428,251.66232325,0.00015876,2]
[398484710,1765730393231,214.98,0.00010463,2]
[398484711,1765730393637,429.96,0.00011414,2]
[398484712,1765730394058,644.95,0.00012366,2]
[398484713,1765730394463,859.93,0.00013317,2]
[398484714,1765730394906,1074.91,0.00014268,2]
[398484715,1765730395317,1289.89,0.00015219,2]
[398484716,1765730404116,254.0,0.000159,2]
[398484717,1765730404887,651.0,0.00015933,2]
[398484719,1765730413798,151.0,0.00015933,2]
[398484720,1765730414664,179.36038715,0.00015933,2]
[398484721,1765730435737,574.12855637,0.00015933,2]
[398484722,1765730453420,500.0,0.00015932,2]
[398484723,1765730470495,157.52,9.509e-05,2]
[398484724,1765730470957,315.05,0.00010373,2]
[398484725,1765730471391,472.57,0.00011237,2]
[398484726,1765730471839,630.09,0.00012102,2]
[398484727,1765730472252,787.62,0.00012966,2]
[398484728,1765730472667,561.38873323,0.00013831,2]
[398484729,1765730472692,383.75126677,0.00013831,2]
[398484730,1765730473069,1102.67,0.00014695,2]
[398484731,1765730473859,1260.19,0.00015559,2]
[398484732,1765730507040,173.784,0.00015614,2]
[398484733,1765730547070,150.0,9.501e-05,2]
[398484734,1765730547289,170.7,0.00010365,2]
[398484735,1765730547643,256.05,0.00011229,2]
[398484736,1765730548043,341.4,0.00012092,2]
[398484737,1765730548438,426.75,0.00012956,2]
[398484738,1765730548920,512.1,0.0001382,2]
[398484739,1765730549244,597.44,0.00014684,2]
[398484740,1765730549685,682.79,0.00015547,2]
[398484742,1765730593345,354.335057,0.00013699,2]
[398484743,1765730623468,150.0,9.504e-05,2]
[398484744,1765730623644,150.0,0.00010368,2]
[398484745,1765730624053,150.0,0.00011232,2]
[398484746,1765730624458,181.68,0.00012096,2]
[398484747,1765730624871,227.1,0.0001296,2]
[398484748,1765730625272,272.52,0.00013824,2]
[398484749,1765730625667,317.95,0.00014688,2]
[398484750,1765730626067,363.37,0.00015552,2]
[398484751,1765730654040,1167.5618591,0.00015855,2]
[398484752,1765730700669,150.0,9.498e-05,2]
[398484753,1765730701186,150.0,0.00010362,2]
[398484754,1765730701605,150.0,0.00011225,2]
[398484755,1765730702006,150.0,0.00012089,2]
[398484756,1765730702493,7.86781713,0.00012952,2]
[398484757,1765730702517,142.13218287,0.00012952,2]
[398484758,1765730702968,150.0,0.00013816,2]
[398484759,1765730703381,156.46,0.00014679,2]
[398484760,1765730704337,178.81,0.00015543,2]
[398484767,1765730715305,574.12855637,0.00015933,2]
[398484778,1765730763598,500.0,0.00015932,2]
[398484779,1765730770512,150.0,9.497e-05,2]
[398484780,1765730770943,150.0,0.0001036,2]
[398484781,1765730771380,150.0,0.00011223,2]
[398484788,1765730939684,7848.47926076,0.00015833,2]
[398484789,1765730939709,10000.01,0.00015833,2]
[398484790,1765730939736,10000.01,0.00015833,2]
[398484791,1765730939758,10000.01,0.00015833,2]
[398484792,1765730939782,10000.01,0.00015833,2]
[398484793,1765730939804,10000.01,0.00015833,2]
[398484794,1765730939827,10000.01,0.00015833,2]
[398484795,1765730939852,10000.01,0.00015833,2]
[398484796,1765730939876,10000.01,0.00015833,2]
[398484797,1765730956262,-1553.39706862,0.00015833,2]
[398484816,1765731032032,-3943.95175376,0.00015833,2]
[398484817,1765731032046,-2092.03316173,0.00015833,2]
[398484818,1765731032082,-355827.26356059,0.00015833,2]
[398484819,1765731032095,-1125.97591378,0.00015833,2]
[398484820,1765731032139,-24656.68036025,0.00015833,2]
[398484821,1765731032356,307.89873471,0.00015832,2]
[398484822,1765731032387,186.59020821,0.00015832,2]
[398484823,1765731033367,225.0,0.00015832,2]
[398484824,1765731033409,248.7005733,0.00015832,2]
[398484825,1765731033449,172.07908139,0.00015832,2]
[398484826,1765731033493,161.34029698,0.00015832,2]
[398484865,1765731037738,-1274.43999481,0.00015833,2]
[398484866,1765731037749,-538.5067473,0.00015833,2]
[398484867,1765731037844,-3068.87568946,0.00015833,2]
[398484882,1765731039966,-88879.10687155,0.00015833,2]
[398484883,1765731039977,-250.0,0.00015833,2]
[398484884,1765731039992,-457.7575771,0.00015833,2]
[398484920,1765731045671,-14946.25614749,0.00015833,2]
[398484921,1765731045725,-4240.39342338,0.00015833,2]
[398484922,1765731045779,-8985.2643954,0.00015833,2]
[398484923,1765731045790,-1159.04,0.00015833,2]
[398484928,1765731067297,500.0,0.00015638,2]
[398484931,1765731106215,457.97,0.00015833,2]
[398484932,1765731106798,465.48505297,0.00015832,2]
[398484933,1765731106966,173.784,0.00015523,2]
[398484934,1765731110851,-7101.16205244,0.00015833,2]
[398484935,1765731110957,-10000.01,0.00015833,2]
[398484936,1765731111035,-10000.01,0.00015833,2]
[398484937,1765731111143,-10000.01,0.00015833,2]
[398484938,1765731111252,-10000.01,0.00015833,2]
[398484939,1765731111928,-10000.01,0.00015833,2]
[398484940,1765731111941,-10000.01,0.00015833,2]
[398484941,1765731111989,-10000.01,0.00015833,2]
[398484942,1765731112015,-10000.01,0.00015833,2]
[398484943,1765731134658,500.0,0.00013273,2]
[398484944,1765731134690,1000.0,0.00013821,2]
[398484945,1765731134751,1500.0,0.00014368,2]
[398484949,1765731314615,165.10627698,0.00015739,2]
[398484950,1765731314688,574.12855637,0.00015833,2]
[398484951,1765731330312,-6260.77516665,0.00015833,2]
[398484952,1765731330398,-10000.01,0.00015833,2]
[398484953,1765731330531,-10000.01,0.00015833,2]
[398484954,1765731330639,-10000.01,0.00015833,2]
[398484955,1765731330774,-10000.01,0.00015833,2]
[398484956,1765731330904,-10000.01,0.00015833,2]
[398484957,1765731333238,-10000.01,0.00015833,2]
[398484960,1765731375204,500.0,0.00013699,2]
[398484961,1765731375235,1000.0,0.00014247,2]
[398484962,1765731419363,500.0,0.00015832,2]
[398484963,1765731419548,500.0,0.00015832,2]
[398484964,1765731419789,500.0,0.00015832,2]
[398484991,1765731531227,7000.01,0.00015001,2]
[398484992,1765731531521,329.9178594,0.00015001,2]
[398485000,1765731613338,574.12855637,0.00015833,2]
[398485003,1765731648751,165.10627697,0.00015736,2]
[398485031,1765731680009,7430.4390753,0.00015001,2]
[398485068,1765731914604,574.12855637,0.00015833,2]
[398485074,1765731919634,-926.28967559,0.00015833,2]
[398485075,1765731919792,-10000.01,0.00015833,2]
[398485076,1765731919828,-10000.01,0.00015833,2]
[398485079,1765731922464,-10000.01,0.00015833,2]
[398485080,1765731922573,-10000.01,0.00015833,2]
[398485081,1765731925771,-10000.01,0.00015833,2]
[398485082,1765731926031,-10000.01,0.00015833,2]
[398485083,1765731926058,-10000.01,0.00015833,2]
[398485084,1765731926205,-10000.01,0.00015833,2]
[398485090,1765731929072,-10000.01,0.00015833,2]
[398485091,1765731929086,-10000.01,0.00015833,2]
[398485092,1765731929136,-10000.01,0.00015833,2]
[398485093,1765731931713,-10000.01,0.00015833,2]
[398485094,1765731931833,-10000.01,0.00015833,2]
[398485095,1765731931983,-4864.00117934,0.00015833,2]
[398485096,1765731932013,-38.7102865,0.00015835,2]
[398485097,1765731932075,-194.58706832,0.00015835,2]
[398485098,1765731932296,-500.0,0.00015932,2]
[398485099,1765731932323,-173.784,0.00015964,2]
[398485100,1765731932688,-8652.442,0.0001599,2]
[398485102,1765731933816,229.87079254,0.0001281,2]
[398485104,1765731944325,160.95431115,0.0001281,2]
[398485105,1765731956895,199.849822,0.00015068,2]
[398485106,1765731960882,9639.20586685,0.00015733,2]
[398485107,1765731960911,10000.01,0.00015733,2]
[398485108,1765731960937,10000.01,0.00015733,2]
[398485109,1765731960963,10000.01,0.00015733,2]
[398485110,1765731960996,10000.01,0.00015733,2]
[398485111,1765731961021,10000.01,0.00015733,2]
[398485112,1765731961046,10000.01,0.00015733,2]
[398485113,1765731961070,10000.01,0.00015733,2]
[398485114,1765731961095,10000.01,0.00015733,2]
[398485115,1765731961118,10000.01,0.00015733,2]
[398485116,1765731962119,152.43,0.00012,2]
[398485117,1765731962400,152.43,0.000122,2]
[398485118,1765731962707,152.43,0.000123,2]
[398485119,1765731962999,152.43,0.000125,2]
[398485120,1765731963397,152.43,0.000127,2]
[398485121,1765731963671,152.43,0.000128,2]
[398485122,1765731964129,152.43,0.00013,2]
[398485123,1765731964587,152.43,0.000132,2]
[398485124,1765731965003,152.43,0.000133,2]
[398485125,1765731968122,500.0,0.00013273,2]
[398485126,1765731978337,-152.43,0.000135,2]
[398485127,1765731986641,482.19,0.00010143,2]
[398485128,1765731987109,964.38,0.00011066,2]
[398485129,1765731987516,1446.57,0.00011988,2]
[398485130,1765731987920,1928.76,0.0001291,2]
[398485132,1765732024248,152.42,0.00012,2]
[398485133,1765732024524,152.42,0.00013,2]
[398485138,1765732066791,420.82,9.481e-05,2]
[398485139,1765732067189,841.64,0.00010343,2]
[398485140,1765732068103,1262.46,0.00011205,2]
[398485141,1765732068604,1683.28,0.00012067,2]
[398485142,1765732069027,2104.11,0.00012929,2]
[398485144,1765732083134,272.65,9.99e-05,2]
[398485145,1765732088845,500.0,0.00013273,2]
[398485148,1765732145333,344.49,9.457e-05,2]
[398485149,1765732145750,688.97,0.00010317,2]
[398485150,1765732146186,1033.46,0.00011177,2]
[398485151,1765732146601,543.29,0.00012037,2]
[398485152,1765732146627,834.65,0.00012037,2]
[398485153,1765732147201,1722.43,0.00012896,2]
[398485157,1765732211086,7442.93,0.000136,2]
[398485158,1765732211109,2557.07,0.000136,2]
[398485160,1765732224609,363.41,9.486e-05,2]
[398485161,1765732225019,726.83,0.00010348,2]
[398485162,1765732225427,1090.24,0.0001121,2]
[398485163,1765732225849,1453.66,0.00012072,2]
[398485164,1765732226296,1817.07,0.00012935,2]
[398485193,1765732231974,-500.0,0.00013699,2]
[398485195,1765732231985,-500.0,0.00013699,2]
[398485197,1765732231997,-2180.49,0.00013797,2]
[398485198,1765732232007,-1000.0,0.00014247,2]
[398485200,1765732232017,-233.17164112,0.00014367,2]
[398485202,1765732232027,-2543.9,0.00014659,2]
[398485203,1765732232036,-1500.0,0.00014795,2]
[398485205,1765732232046,-250.0,0.00014869,2]
[398485207,1765732232055,-300.0,0.00015475,2]
[398485209,1765732232066,-2907.31,0.00015522,2]
[398485210,1765732232075,-1021.61662673,0.000157,2]
[398485212,1765732232085,-188.6358154,0.00015732,2]
[398485214,1765732232094,-274.92144571,0.00015732,2]
[398485215,1765732232103,-117230.70950041,0.00015733,2]
[398485217,1765732232114,-70625.0120333,0.00015733,2]
[398485219,1765732232125,-1428.97879449,0.00015733,2]
[398485472,1765732237979,-1392.72177604,0.00015733,2]
[398485473,1765732237999,-706.64386769,0.00015733,2]
[398485474,1765732238010,-6400.91524654,0.00015733,2]
[398485475,1765732238022,-6386.28171666,0.00015733,2]
[398485476,1765732238036,-268.61921822,0.00015733,2]
[398485477,1765732238047,-10951.96238003,0.00015733,2]
[398485545,1765732240274,-2248.48398823,0.00015733,2]
[398485546,1765732240285,-1052.24384069,0.00015733,2]
[398485550,1765732240331,-1061.69153269,0.00015733,2]
[398485552,1765732240342,-14891.09803384,0.00015733,2]
[398485557,1765732240388,-3360.382956,0.00015733,2]
[398485559,1765732240399,-1421.1804627,0.00015733,2]
[398485787,1765732243026,-777.17506577,0.00015733,2]
[398485789,1765732243037,-8865.14604208,0.00015733,2]
[398485858,1765732243703,-4430.55,0.00015733,2]
[398485860,1765732243714,-418.93857618,0.00015733,2]
[398485863,1765732243724,-1894.19750275,0.00015733,2]
[398485873,1765732243826,-1096.40019257,0.00015733,2]
[398486100,1765732246002,-8878.6,0.00015733,2]
[398486102,1765732246013,-478579.59508419,0.00015733,2]
[398486415,1765732262356,154.49,0.00012,2]
[398486416,1765732262647,154.49,0.000121,2]
[398486417,1765732262964,154.49,0.000123,2]
[398486418,1765732263262,154.49,0.000124,2]
[398486419,1765732263757,154.49,0.000125,2]
[398486420,1765732263958,154.49,0.000126,2]
[398486421,1765732264486,154.49,0.000128,2]
[398486422,1765732264579,154.49,0.000129,2]
[398486423,1765732264812,154.49,0.00013,2]
[398486424,1765732265099,154.49,0.000131,2]
[398486425,1765732265417,154.49,0.000133,2]
[398486426,1765732266379,154.49,0.000134,2]
[398486427,1765732266771,154.49,0.000135,2]
[398486428,1765732267057,154.49,0.000136,2]
[398486429,1765732267349,154.49,0.000138,2]
[398486430,1765732267670,154.49,0.000139,2]
[398486431,1765732267957,154.49,0.00014,2]
[398486432,1765732303171,209.92,9.459e-05,2]
[398486433,1765732303576,419.84,0.00010319,2]
[398486434,1765732304007,629.77,0.00011179,2]
[398486435,1765732304432,839.69,0.00012039,2]
[398486436,1765732304821,1049.61,0.00012898,2]
[398486437,1765732305229,1259.53,0.00013758,2]
[398486439,1765732330734,500.0,0.00013273,2]
[398486440,1765732334385,300.0,0.00013673,2]
[398486441,1765732337366,500.0,0.00013699,2]
[398486442,1765732338809,500.0,0.00013699,2]
[398486443,1765732340413,-600.0,0.00014221,2]
[398486444,1765732381311,242.43,9.456e-05,2]
[398486445,1765732381710,484.87,0.00010316,2]
[398486446,1765732382095,727.3,0.00011175,2]
[398486447,1765732382509,969.73,0.00012035,2]
[398486448,1765732382900,1212.16,0.00012895,2]
[398486449,1765732383325,1454.6,0.00013754,2]
[398486453,1765732458338,500.0,0.00013699,2]
[398486454,1765732459181,240.71,9.478e-05,2]
[398486455,1765732459604,481.41,0.00010339,2]
[398486456,1765732460274,500.0,0.00013699,2]
[398486457,1765732461728,722.12,0.00011201,2]
[398486458,1765732463154,962.82,0.00012063,2]
[398486459,1765732463825,301.86,0.00012924,2]
[398486460,1765732463849,901.67,0.00012924,2]
[398486461,1765732464263,1444.23,0.00013786,2]
[398486465,1765732539867,176.37,9.532e-05,2]
[398486466,1765732540301,352.74,0.00010399,2]
[398486467,1765732540722,529.11,0.00011265,2]
[398486468,1765732541108,705.49,0.00012132,2]
[398486469,1765732547978,881.86,0.00012998,2]
[398486470,1765732548309,1058.23,0.00013865,2]
[398486471,1765732570104,500.0,0.00013699,2]
[398486472,1765732582558,500.0,0.00013699,2]
[398486473,1765732583905,293.12130251,0.00013699,2]
[398486474,1765732625455,150.0,9.467e-05,2]
[398486475,1765732625855,258.46,0.00010328,2]
[398486476,1765732626285,387.7,0.00011189,2]
[398486477,1765732626690,516.93,0.00012049,2]
[398486478,1765732627373,646.16,0.0001291,2]
[398486479,1765732627582,697.93869749,0.00013771,2]
[398486480,1765732627608,77.45130251,0.00013771,2]
[398486481,1765732699489,500.0,0.00013699,2]
[398486482,1765732703379,150.0,9.468e-05,2]
[398486483,1765732703799,188.86,0.00010329,2]
[398486484,1765732704221,283.28,0.0001119,2]
[398486485,1765732705034,377.71,0.0001205,2]
[398486486,1765732705187,472.14,0.00012911,2]
[398486487,1765732705508,566.57,0.00013772,2]
[398486488,1765732779896,150.0,9.456e-05,2]
[398486489,1765732780288,150.0,0.00010315,2]
[398486490,1765732780683,205.45,0.00011175,2]
[398486491,1765732781096,273.93,0.00012035,2]
[398486492,1765732781505,342.41,0.00012894,2]
[398486493,1765732781911,410.9,0.00013754,2]
[398486494,1765732854279,158.98937,6.843e-05,2]
[398486495,1765732854394,158.98937,0.00013687,2]
[398486508,1765732857936,150.0,9.463e-05,2]
[398486509,1765732858155,150.0,0.00010323,2]
[398486510,1765732858561,150.0,0.00011184,2]
[398486511,1765732858969,195.9,0.00012044,2]
[398486512,1765732859372,244.88,0.00012904,2]
[398486518,1765732859775,293.85,0.00013765,2]
[398486526,1765732923881,497.69307966,0.00013699,2]
[398486527,1765732932870,150.0,7.13e-05,2]
[398486528,1765732933281,150.0,7.778e-05,2]
[398486529,1765732933706,150.0,8.426e-05,2]
[398486530,1765732934098,150.0,9.075e-05,2]
[398486531,1765732934484,169.49,9.723e-05,2]
[398486532,1765732943592,203.39,0.00010371,2]
[398486533,1765732944010,237.29,0.00011019,2]
[398486534,1765732944776,271.19,0.00011667,2]
[398486535,1765732944924,305.09,0.00012316,2]
[398486536,1765732945339,338.98,0.00012964,2]
[398486537,1765733012228,150.0,7.143e-05,2]
[398486538,1765733012505,9850.01,0.00013785,2]
[398486539,1765733012527,10000.01,0.00013785,2]
[398486540,1765733012549,10000.01,0.00013785,2]
[398486541,1765733012570,10000.01,0.00013785,2]
[398486542,1765733012591,10000.01,0.00013785,2]
[398486543,1765733012612,150.0,0.00013785,2]
[398486544,1765733012720,150.0,7.792e-05,2]
[398486545,1765733013079,150.0,8.441e-05,2]
[398486546,1765733021492,184.7990518,0.00013669,2]
[398486547,1765733026860,216.60532268,9.277e-05,2]
[398486548,1765733027493,216.60532268,0.00013669,2]
[398486549,1765733042344,152.82,0.00012,2]
[398486550,1765733042619,152.82,0.000121,2]
[398486551,1765733042886,152.82,0.000121,2]
[398486552,1765733043259,152.82,0.000122,2]
[398486553,1765733043597,152.82,0.000123,2]
[398486554,1765733043824,152.82,0.000123,2]
[398486555,1765733044109,152.82,0.000124,2]
[398486556,1765733044400,152.82,0.000125,2]
[398486557,1765733045408,152.82,0.000126,2]
[398486558,1765733045714,152.82,0.000126,2]
[398486559,1765733045980,152.82,0.000127,2]
[398486560,1765733046251,152.82,0.000128,2]
[398486561,1765733046529,152.82,0.000128,2]
[398486562,1765733046800,152.82,0.000129,2]
[398486563,1765733047059,152.82,0.00013,2]
[398486564,1765733047384,152.82,0.00013,2]
[398486565,1765733047637,152.82,0.000131,2]
[398486566,1765733047905,152.82,0.000132,2]
[398486567,1765733048477,152.82,0.000132,2]
[398486568,1765733048845,152.82,0.000133,2]
[398486569,1765733049046,152.82,0.000134,2]
[398486570,1765733049316,152.82,0.000135,2]
[398486571,1765733049610,152.82,0.000135,2]
[398486572,1765733049892,152.82,0.000136,2]
[398486573,1765733050172,152.82,0.000137,2]
[398486574,1765733050457,152.82,0.000137,2]
[398486575,1765733051347,152.82,0.000138,2]
[398486576,1765733051540,2353.0,0.000138,2]
[398486577,1765733051795,1923.902433,0.00013785,2]
[398486578,1765733056179,300.0,0.00013673,2]
[398486579,1765733062399,500.0,0.00013699,2]
[398486580,1765733062661,500.0,0.00013699,2]
[398486581,1765733080048,185.53,7.166e-05,2]
[398486582,1765733080450,371.05,7.818e-05,2]
[398486583,1765733081115,556.58,8.469e-05,2]
[398486584,1765733081286,742.1,9.121e-05,2]
[398486585,1765733081709,927.63,9.772e-05,2]
[398486586,1765733082104,112.017567,0.00010424,2]
[398486587,1765733082127,1001.132433,0.00010424,2]
[398486588,1765733082654,1298.68,0.00011075,2]
[398486589,1765733082972,1484.2,0.00011727,2]
[398486590,1765733083375,1669.73,0.00012378,2]
[398486591,1765733083986,1855.25,0.0001303,2]
[398486596,1765733089813,307.68509263,9.277e-05,2]
[398486597,1765733090488,307.68509263,0.00013417,2]
[398486600,1765733116554,154.3,0.00012,2]
[398486601,1765733117066,154.3,0.000122,2]
[398486602,1765733117435,154.3,0.000124,2]
[398486603,1765733117704,154.3,0.000126,2]
[398486604,1765733117993,154.3,0.000128,2]
[398486605,1765733118342,154.3,0.00013,2]
[398486606,1765733118572,154.3,0.000132,2]
[398486607,1765733118921,154.3,0.000134,2]
[398486608,1765733119164,154.3,0.000136,2]
[398486609,1765733119462,154.3,0.000138,2]
[398486614,1765733158225,150.0,7.184e-05,2]
[398486615,1765733158651,150.0,7.837e-05,2]
[398486616,1765733159394,166.97,8.49e-05,2]
[398486617,1765733159503,65.67738174,9.143e-05,2]
[398486618,1765733159527,156.95261826,9.143e-05,2]
[398486619,1765733159859,278.29,9.796e-05,2]
[398486620,1765733160259,333.95,0.00010449,2]